bitfinex/quotes_BTCUSD_20251215
["timestamp","ask_amount","ask_price","bid_price","bid_amount"]
[1765814698486,0.22960065,87108.0,87106.0,0.01832]
[1765814698688,0.01147987,87109.0,87106.0,0.02980026]
[1765814699060,0.0114796,87111.0,87107.0,0.01148013]
[1765814699259,0.01147987,87109.0,87106.0,0.02980026]
[1765814699464,0.24107875,87109.0,87106.0,0.01832]
[1765814699675,0.22960096,87108.0,87107.0,0.04890262]
[1765814699859,0.22960096,87108.0,87106.0,0.01832]
[1765814700555,0.01148105,87100.0,87098.0,0.01832]
[1765814700764,0.22962376,87099.0,87098.0,0.01832]
[1765814700988,0.01744,87107.0,87104.0,0.01148052]
[1765814701195,0.01148026,87106.0,87105.0,0.02709053]
[1765814701414,0.01148079,87102.0,87098.0,0.01832]
[1765814701634,0.22962166,87100.0,87098.0,0.01832]
[1765814701836,0.01744,87107.0,87105.0,0.22960712]
[1765814701990,0.01744,87107.0,87104.0,0.24108802]
[1765814701991,0.01744,87107.0,87104.0,0.24109095]
[1765814702240,0.01744,87107.0,87103.0,0.01148066]
[1765814702241,0.336,87131.0,87106.0,0.04971287]
[1765814702385,0.01147644,87135.0,87129.0,0.01147723]
[1765814702584,0.01147644,87135.0,87124.0,0.01147789]
[1765814702585,0.01147736,87128.0,87124.0,0.02295578]
[1765814702825,0.01147736,87128.0,87121.0,0.03526]
[1765814702826,0.01147789,87124.0,87121.0,0.03526]
[1765814703069,0.22956577,87121.0,87120.0,0.01832]
[1765814705907,0.22964221,87092.0,87090.0,0.00161287]
[1765814706103,0.22964319,87092.0,87090.0,0.00161287]
[1765814706315,0.22964319,87092.0,87091.0,0.02725541]
[1765814706519,0.01148263,87088.0,87081.0,0.01148356]
[1765814706748,0.4068,87099.0,87082.0,0.07928342]
[1765814706934,0.22964988,87090.0,87087.0,0.2296549]
[1765814707253,0.24110054,87101.0,87096.0,0.22963131]
[1765814707429,0.01148092,87101.0,87097.0,0.26532132]
[1765814707569,0.24109987,87101.0,87097.0,0.03569275]
[1765814707772,0.24109987,87101.0,87097.0,0.25545278]
[1765814707773,0.01148092,87101.0,87097.0,0.25545278]
[1765814707975,0.01832,87118.0,87097.0,0.25545278]
[1765814707976,0.01148013,87107.0,87104.0,0.01148052]
[1765814708187,0.01148013,87107.0,87104.0,0.01309339]
[1765814708401,0.22960315,87107.0,87105.0,0.04962872]
[1765814708848,0.001,87101.0,87095.0,0.01148171]
[1765814708994,0.001,87101.0,87099.0,0.22962331]
[1765814709215,0.001,87101.0,87100.0,0.0481]
[1765814709416,0.0718,87122.0,87108.0,0.01148]
[1765814709641,0.55724505,87130.0,87100.0,0.04971287]
[1765814709642,0.02891894,87116.0,87111.0,0.0114796]
[1765814709817,0.02891894,87116.0,87109.0,0.01147987]
[1765814709818,0.22958774,87113.0,87110.0,0.01147973]
[1765814710018,0.01147921,87114.0,87111.0,0.04821595]
[1765814710648,0.22958949,87112.0,87111.0,0.04821595]
[1765814711415,0.01148013,87107.0,87105.0,0.22960734]
[1765814711542,0.24107198,87111.0,87106.0,0.24108529]
[1765814711543,0.01147973,87110.0,87106.0,0.24108529]
[1765814711746,0.01147973,87110.0,87102.0,0.01148079]
[1765814711971,0.01148026,87106.0,87103.0,0.01832]
[1765814712173,0.01148,87108.0,87105.0,0.22960768]
[1765814712530,0.01147987,87109.0,87106.0,0.02954638]
[1765814712703,0.22960267,87107.0,87106.0,0.02954638]
[1765814713383,0.01068739,87107.0,87106.0,0.26076455]
[1765814713560,0.01068851,87115.0,87112.0,0.22958809]
[1765814713803,0.01068851,87115.0,87114.0,0.22958422]
[1765814714002,0.01147855,87119.0,87114.0,0.31453212]
[1765814714208,0.01068851,87120.0,87117.0,0.01147881]
[1765814714430,0.24104962,87119.0,87115.0,0.01147907]
[1765814714632,0.01147907,87115.0,87108.0,0.01148]
[1765814714853,0.2907,87127.0,87108.0,0.01148]
[1765814714854,0.01147881,87117.0,87113.0,0.01147934]
[1765814715069,0.22960267,87107.0,87106.0,0.02954638]
[1765814715267,0.22960267,87107.0,87097.0,0.01832]
[1765814715268,0.22962639,87098.0,87097.0,0.01832]
[1765814715480,0.22962639,87098.0,87097.0,0.02482618]
[1765814715695,0.27792639,87098.0,87097.0,0.00650618]
[1765814715913,0.27792639,87098.0,87072.0,0.01148474]
[1765814715914,0.01148435,87075.0,87072.0,0.01148474]
[1765814716131,0.24117984,87072.0,87068.0,0.02980527]
[1765814716346,0.01148474,87072.0,87070.0,0.22969962]
[1765814716547,0.24118316,87071.0,87068.0,0.01832]
[1765814716722,0.22970143,87070.0,87069.0,0.00642625]
[1765814717170,0.22970287,87069.0,87068.0,0.01832]
[1765814717387,0.01148474,87072.0,87068.0,0.02980527]
[1765814717621,0.24117752,87073.0,87070.0,0.2297002]
[1765814717843,0.09245477,87109.0,87072.0,0.0481]
[1765814718112,0.01148145,87097.0,87092.0,0.01148211]
[1765814718341,0.01148013,87107.0,87102.0,0.01148079]
[1765814718556,0.06140083,87120.0,87099.0,0.22962357]
[1765814718557,0.01148066,87103.0,87099.0,0.22962357]
[1765814718738,0.24109982,87101.0,87100.0,0.03272249]
[1765814718979,0.24109646,87103.0,87097.0,0.01832]
[1765814718980,0.01148039,87105.0,87097.0,0.02980145]
[1765814719193,0.01148066,87103.0,87100.0,0.24110084]
[1765814719407,0.01148026,87106.0,87103.0,0.01148066]
[1765814719626,0.01069163,87109.0,87103.0,0.00161287]
[1765814719831,0.06140083,87124.0,87117.0,0.01147881]
[1765814719832,0.25174236,87120.0,87117.0,0.01147881]
[1765814720036,0.01147776,87125.0,87121.0,0.24104273]
[1765814720244,0.01147776,87125.0,87119.0,0.241049]
[1765814720245,0.01147802,87123.0,87119.0,0.241049]
[1765814720450,0.24103928,87123.0,87118.0,0.03902851]
[1765814720663,0.02217773,87122.0,87118.0,0.02754983]
[1765814720878,0.0114767,87133.0,87129.0,0.01147723]
[1765814721090,0.02217771,87135.0,87130.0,0.22954123]
[1765814721300,0.02237758,87136.0,87130.0,0.22954123]
[1765814721505,0.24100892,87134.0,87130.0,0.22954123]
[1765814721732,0.24100892,87134.0,87129.0,0.24101914]
[1765814721733,0.02217797,87133.0,87129.0,0.24101914]
[1765814721946,0.01147815,87122.0,87119.0,0.05096669]
[1765814722160,0.01147815,87122.0,87118.0,0.0301627]
[1765814722161,1.22957104,87119.0,87118.0,0.001]
[1765814722385,0.02462693,87119.0,87113.0,0.01147934]
[1765814722595,0.0002,87136.0,87121.0,0.22956385]
[1765814722596,0.01147763,87126.0,87121.0,0.22956385]
[1765814722809,0.01070925,87130.0,87128.0,0.01147736]
[1765814723067,0.01070925,87131.0,87125.0,0.01147776]
[1765814723282,0.24102565,87128.0,87125.0,0.01147776]
[1765814723493,0.01147776,87125.0,87121.0,0.00161287]
[1765814723733,0.01147776,87125.0,87120.0,0.01832]
[1765814723734,0.22956314,87122.0,87120.0,0.01832]
[1765814723938,0.26572467,87124.0,87121.0,0.02833409]
[1765814724203,0.01147736,87128.0,87121.0,0.03981237]
[1765814724422,0.24103683,87124.0,87121.0,0.02833409]
[1765814724643,0.01091131,87136.0,87130.0,0.22954097]
[1765814724644,0.0002,87136.0,87130.0,0.22954097]
[1765814724858,0.0002,87136.0,87131.0,0.02295394]
[1765814725064,0.0256,87134.0,87131.0,0.08055891]
[1765814725274,0.0107247,87134.0,87131.0,0.08055891]
[1765814725476,0.0002,87136.0,87131.0,0.08055891]
[1765814725751,0.0002,87136.0,87131.0,0.23934572]
[1765814725965,0.0002,87136.0,87131.0,0.6683502]
[1765814726168,0.0002,87136.0,87135.0,0.34071839]
[1765814726373,0.0002,87136.0,87135.0,0.53693129]
[1765814726579,0.0002,87136.0,87135.0,0.71523891]
[1765814727417,0.0002,87137.0,87136.0,0.68148467]
[1765814727622,0.0002,87137.0,87136.0,0.79899754]
[1765814728287,0.00025174,87147.0,87146.0,0.68145833]
[1765814728505,0.00025174,87147.0,87146.0,0.7494912]
[1765814728717,0.00025174,87147.0,87146.0,0.87755788]
[1765814729400,0.00025174,87147.0,87146.0,0.74799785]
[1765814729634,0.00025174,87147.0,87146.0,0.87755788]
[1765814730083,0.00025174,87147.0,87146.0,0.76631785]
[1765814730531,0.00025174,87147.0,87146.0,0.87755788]
[1765814730743,0.00025174,87147.0,87146.0,0.74799785]
[1765814730959,0.00025174,87147.0,87146.0,0.76631785]
[1765814731168,0.00025174,87147.0,87146.0,0.88055788]
[1765814731402,0.00025174,87147.0,87146.0,0.88655788]
[1765814731603,0.00025174,87147.0,87146.0,0.88355788]
[1765814731816,0.00025174,87147.0,87146.0,0.87755788]
[1765814732061,4.032e-05,87165.0,87164.0,0.68141094]
[1765814732272,4.032e-05,87165.0,87164.0,0.8831479]
[1765814732478,0.01069003,87192.0,87182.0,0.39066357]
[1765814732696,0.01089003,87196.0,87182.0,0.49513644]
[1765814732908,0.01089003,87196.0,87195.0,0.39062937]
[1765814732909,0.0002,87196.0,87195.0,0.39062937]
[1765814733125,0.0002,87196.0,87195.0,0.52859224]
[1765814733408,0.0002,87196.0,87195.0,0.60915115]
[1765814733838,0.0002,87196.0,87195.0,0.37896273]
[1765814734260,0.0002,87196.0,87195.0,0.44889273]
[1765814734688,0.0002,87196.0,87195.0,0.44789273]
[1765814735128,0.22956831,87196.0,87195.0,0.08055891]
[1765814735356,0.24025834,87196.0,87195.0,0.001]
[1765814735582,0.01089003,87196.0,87195.0,0.001]
[1765814735791,0.01089003,87196.0,87195.0,0.002]
[1765814735995,0.0002,87196.0,87195.0,0.002]
[1765814736202,0.01089003,87196.0,87195.0,0.02811693]
[1765814736407,0.01089003,87196.0,87195.0,0.002]
[1765814737051,0.05860003,87196.0,87195.0,0.002]
[1765814737263,1.12771003,87196.0,87195.0,0.002]
[1765814737470,0.84109813,87196.0,87195.0,0.002]
[1765814737895,0.72589813,87196.0,87195.0,0.001]
[1765814738101,1.15239813,87196.0,87195.0,0.001]
[1765814738307,1.15239813,87196.0,87174.0,0.01147131]
[1765814738308,0.01147223,87167.0,87164.0,0.17501412]
[1765814738546,0.01147223,87167.0,87159.0,0.01828]
[1765814738547,0.01147275,87163.0,87159.0,0.01828]
[1765814738759,0.22946252,87161.0,87159.0,0.01828]
[1765814738972,0.22946379,87160.0,87159.0,0.01828]
[1765814739178,0.01147315,87160.0,87155.0,0.03544]
[1765814739415,0.01147315,87160.0,87155.0,0.01828]
[1765814739416,0.24094455,87158.0,87155.0,0.01828]
[1765814739631,0.01147539,87143.0,87137.0,0.22952313]
[1765814739841,0.01147618,87137.0,87131.0,0.01147697]
[1765814740085,0.01147618,87137.0,87130.0,0.03544]
[1765814740086,0.01147789,87124.0,87116.0,0.06893]
[1765814740295,0.01147789,87124.0,87106.0,0.22960316]
[1765814740296,0.22957309,87119.0,87115.0,0.01147907]
[1765814740515,0.22957774,87117.0,87115.0,0.00161287]
[1765814740718,0.22957774,87117.0,87112.0,0.01828]
[1765814740719,0.01147907,87115.0,87112.0,0.01828]
[1765814740977,0.02162,87116.0,87112.0,0.02975947]
[1765814741200,0.22958685,87113.0,87112.0,0.01828]
[1765814741407,0.24106281,87115.0,87112.0,0.01989287]
[1765814741619,0.22958685,87113.0,87112.0,0.01989287]
[1765814741831,0.24106147,87115.0,87112.0,0.01989287]
[1765814742038,0.01147907,87115.0,87112.0,0.03137234]
[1765814742243,0.22958422,87114.0,87113.0,0.02494962]
[1765814743585,0.01147907,87115.0,87113.0,0.02494962]
[1765814743761,0.22958422,87114.0,87113.0,0.02494962]
[1765814743995,0.01147894,87116.0,87113.0,0.02494962]
[1765814744243,0.22958158,87115.0,87114.0,0.05499516]
[1765814744458,0.01147881,87117.0,87114.0,0.05499516]
[1765814744659,0.01147894,87116.0,87112.0,0.03137234]
[1765814744905,0.24106226,87115.0,87112.0,0.01989287]
[1765814745132,0.01147881,87117.0,87112.0,0.03137234]
[1765814745321,0.01147894,87116.0,87113.0,0.01247934]
[1765814745520,0.01147881,87117.0,87114.0,0.01147921]
[1765814745731,0.01147881,87117.0,87115.0,0.07670604]
[1765814746144,0.1152,87133.0,87115.0,0.07670604]
[1765814746145,0.01147815,87122.0,87118.0,0.22957192]
[1765814746355,0.01147815,87122.0,87117.0,0.01147881]
[1765814746561,0.01147868,87118.0,87115.0,0.00161287]
[1765814746987,0.22957895,87116.0,87115.0,0.00161287]
[1765814747195,0.22964221,87092.0,87080.0,0.00199998]
[1765814747400,0.22964221,87092.0,87070.0,0.01148501]
[1765814747401,1.0,87068.0,87033.0,0.01148989]
[1765814747615,1.23858013,87090.0,87033.0,0.01310276]
[1765814747616,0.01148883,87041.0,87033.0,0.01310276]
[1765814747814,0.0114891,87039.0,87034.0,0.01148976]
[1765814748013,0.0114891,87039.0,87033.0,0.01310276]
[1765814748014,0.01148949,87036.0,87035.0,0.0265883]
[1765814748229,0.01148936,87037.0,87033.0,0.00161287]
[1765814748360,0.01148936,87037.0,87026.0,0.03544]
[1765814748361,0.01832,87050.0,87047.0,0.01148804]
[1765814748558,0.01148725,87053.0,87049.0,0.06220065]
[1765814748813,0.01148725,87053.0,87035.0,0.22979213]
[1765814748814,0.01148527,87068.0,87052.0,0.05071287]
[1765814749010,0.0114854,87067.0,87062.0,0.01148606]
[1765814749254,0.2297187,87063.0,87062.0,0.00161287]
[1765814750314,0.2297187,87063.0,87062.0,0.00261287]
[1765814750737,0.2297187,87063.0,87062.0,0.00161287]
[1765814751545,0.002,87050.0,87047.0,0.01148804]
[1765814751746,0.002,87050.0,87049.0,0.00161287]
[1765814752163,0.01148738,87052.0,87049.0,0.00161287]
[1765814752370,0.22975301,87050.0,87049.0,0.00161287]
[1765814752581,0.01148725,87053.0,87049.0,0.01310065]
[1765814752784,0.24123107,87054.0,87050.0,0.01148765]
[1765814753125,0.01148685,87056.0,87051.0,0.03807054]
[1765814753424,0.01148685,87056.0,87050.0,0.00161287]
[1765814753425,0.01148725,87053.0,87050.0,0.00161287]
[1765814753560,0.22975037,87051.0,87050.0,0.00161287]
[1765814754109,0.22975037,87051.0,87049.0,0.001]
[1765814754271,0.24126222,87043.0,87039.0,0.0114891]
[1765814754474,0.24126489,87042.0,87039.0,0.00161287]
[1765814754726,0.01148844,87044.0,87040.0,0.08403434]
[1765814755036,0.24125546,87045.0,87040.0,0.31542402]
[1765814755279,0.22977597,87042.0,87040.0,0.00161287]
[1765814756088,0.22977597,87042.0,87039.0,0.002]
[1765814756089,0.22977941,87040.0,87039.0,0.002]
[1765814756294,0.25248941,87040.0,87039.0,0.002]
[1765814756509,0.22982623,87023.0,87020.0,0.05842322]
[1765814756713,0.2413069,87027.0,87024.0,0.01149108]
[1765814756714,0.24130468,87027.0,87024.0,0.01149108]
[1765814756916,0.01149042,87029.0,87025.0,0.01149095]
[1765814757079,0.01149042,87029.0,87025.0,0.24130857]
[1765814757080,0.01149055,87028.0,87025.0,0.24130857]
[1765814757280,0.01149042,87029.0,87025.0,0.24292144]
[1765814757475,0.22981341,87028.0,87025.0,0.00161287]
[1765814757683,0.22981341,87028.0,87026.0,0.03305213]
[1765814757885,0.24130396,87028.0,87026.0,0.03305213]
[1765814758093,0.22981509,87027.0,87025.0,0.00161287]
[1765814758318,0.22981509,87027.0,87021.0,0.0004]
[1765814758319,0.22982694,87022.0,87021.0,0.0004]
[1765814759520,0.22982435,87023.0,87021.0,0.0004]
[1765814760136,0.25253435,87023.0,87021.0,0.0014]
[1765814760565,0.04542,87022.0,87021.0,0.0034]
[1765814760736,0.04542,87022.0,87021.0,0.0014]
[1765814760990,1.43945902,87022.0,87021.0,0.0014]
[1765814761117,1.55465902,87022.0,87021.0,9.398e-05]
[1765814761320,1.53040868,87022.0,87021.0,9.398e-05]
[1765814761520,1.05001839,87020.0,86981.0,0.03584]
[1765814761718,1.18792839,87020.0,86981.0,0.03584]
[1765814761945,0.1152,86995.0,86981.0,0.0004]
[1765814762146,1.25260827,86995.0,86981.0,0.0004]
[1765814762351,1.27531827,86995.0,86981.0,0.0004]
[1765814762712,0.22989657,86996.0,86989.0,0.22991325]
[1765814762950,0.22989385,86997.0,86995.0,0.02303133]
[1765814763125,0.25260827,86995.0,86994.0,0.0004]
[1765814763321,1.25260827,86995.0,86994.0,0.0004]
[1765814763527,1.27531827,86995.0,86994.0,0.0004]
[1765814763723,1.68121827,86995.0,86994.0,0.0004]
[1765814763967,1.79441838,86995.0,86994.0,0.0004]
[1765814764580,1.67921838,86995.0,86994.0,0.0004]
[1765814765162,1.68021838,86995.0,86994.0,0.0004]
[1765814765383,1.64855999,86995.0,86994.0,0.0004]
[1765814765603,0.52159827,86995.0,86994.0,0.0004]
[1765814765840,1.07460827,86995.0,86994.0,0.0004]
[1765814766435,0.54430827,86995.0,86994.0,0.0004]
[1765814766587,0.53995827,86995.0,86994.0,0.0004]
[1765814766793,0.001,86995.0,86994.0,0.0004]
[1765814767010,0.001,86995.0,86994.0,0.41893407]
[1765814767210,0.001,86995.0,86994.0,0.50718401]
[1765814767691,0.001,86995.0,86994.0,0.50797271]
[1765814768207,0.011492,87017.0,87013.0,0.24134092]
[1765814768408,0.011492,87017.0,87014.0,0.07240406]
[1765814768620,0.24133914,87015.0,87011.0,0.24134718]
[1765814768820,0.24136444,87006.0,87000.0,0.2413793]
[1765814769014,0.01149293,87010.0,87005.0,0.2298705]
[1765814769220,0.84192453,87021.0,87018.0,0.01149187]
[1765814769221,0.4723,87021.0,87018.0,0.01149187]
[1765814769424,0.03420121,87023.0,87018.0,0.01149187]
[1765814769629,0.24132383,87020.0,87019.0,0.02766864]
[1765814770209,0.01149134,87022.0,87019.0,0.24132489]
[1765814770411,0.22982321,87024.0,87019.0,0.24132489]
[1765814770412,0.01149042,87029.0,87025.0,0.01149095]
[1765814770578,0.01149055,87028.0,87025.0,0.22981836]
[1765814770791,0.2907,87038.0,87025.0,0.22981836]
[1765814770792,0.01148883,87041.0,87037.0,0.01148936]
[1765814771112,0.24125576,87045.0,87040.0,0.22977711]
[1765814771411,0.0245266,87044.0,87043.0,0.01148857]
[1765814771625,0.0245266,87044.0,87043.0,0.35743293]
[1765814772111,0.0245266,87044.0,87043.0,0.05857144]
[1765814772288,0.0245266,87044.0,87043.0,0.20842627]
[1765814772899,0.0245266,87044.0,87043.0,0.00161287]
[1765814773115,0.22978205,87039.0,87033.0,0.01148989]
[1765814773318,0.22978205,87039.0,87015.0,0.2907]
[1765814773319,0.0245266,87039.0,87038.0,0.24288615]
[1765814773521,0.0245266,87042.0,87038.0,0.39959618]
[1765814773697,0.03068182,87054.0,87051.0,0.24123788]
[1765814773912,0.02457634,87053.0,87052.0,0.31032511]
[1765814774113,0.02457634,87053.0,87052.0,0.31193798]
[1765814774337,0.02457634,87053.0,87052.0,0.463959]
[1765814775589,0.02457634,87053.0,87052.0,0.10816389]
[1765814775720,0.02457634,87053.0,87052.0,0.00161287]
[1765814775921,0.0114887,87042.0,87039.0,0.06909]
[1765814776123,0.02457634,87041.0,87040.0,0.01836]
[1765814776355,0.02457634,87041.0,87040.0,0.01997287]
[1765814776777,0.02457634,87041.0,87040.0,0.13453287]
[1765814776934,0.02457634,87041.0,87040.0,0.0357241]
[1765814777133,0.02457634,87041.0,87040.0,0.01997287]
[1765814777837,0.02457634,87041.0,87040.0,0.02097287]
[1765814778070,0.02457634,87041.0,87040.0,0.01997287]
[1765814778686,0.02457634,87041.0,87040.0,0.36431228]
[1765814778927,0.02457634,87041.0,87040.0,0.00161287]
[1765814779128,0.02457634,87041.0,87040.0,0.04708287]
[1765814779330,0.08628201,87041.0,87040.0,0.13545202]
[1765814779497,0.08728201,87041.0,87040.0,0.13545202]
[1765814779699,0.08728201,87041.0,87040.0,0.06636202]
[1765814780096,0.02457634,87041.0,87040.0,0.02089202]
[1765814780300,0.06170567,87045.0,87040.0,0.13545202]
[1765814780499,0.06170567,87061.0,87059.0,0.22972926]
[1765814780701,0.06170567,87061.0,87058.0,0.01148659]
[1765814780899,0.06170567,87059.0,87058.0,0.22973047]
[1765814781103,0.06170567,87065.0,87059.0,0.01148646]
[1765814781309,0.01071921,87064.0,87062.0,0.24120692]
[1765814781579,0.01071921,87064.0,87060.0,0.05591395]
[1765814781786,0.01071921,87064.0,87061.0,0.01148619]
[1765814781982,0.2297187,87063.0,87060.0,0.22972645]
[1765814782241,0.01071921,87062.0,87060.0,0.24121278]
[1765814782439,0.01071921,87064.0,87061.0,0.11007636]
[1765814782679,0.01071921,87064.0,87062.0,0.2297198]
[1765814783094,0.01071921,87064.0,87061.0,0.24120718]
[1765814783268,0.25192038,87065.0,87061.0,0.24120718]
[1765814783444,0.01071921,87064.0,87062.0,0.24120611]
[1765814783649,0.01148619,87061.0,87058.0,0.00161287]
[1765814783868,0.24121849,87058.0,87048.0,0.03536]
[1765814784064,0.01148751,87051.0,87048.0,0.03536]
[1765814784303,0.01071921,87055.0,87052.0,0.22974647]
[1765814784521,0.01071921,87055.0,87051.0,0.24123741]
[1765814784797,0.01071921,87056.0,87053.0,0.01148725]
[1765814784997,0.24045801,87056.0,87054.0,0.05070708]
[1765814785204,0.01071921,87055.0,87054.0,0.05070708]
[1765814785431,0.22977413,87042.0,87035.0,0.03536]
[1765814785560,0.22978997,87036.0,87034.0,0.01832]
[1765814785764,0.01148936,87037.0,87034.0,0.01832]
[1765814785765,0.01072867,87035.0,87034.0,0.01832]
[1765814785965,0.0732932,87043.0,87036.0,0.01148949]
[1765814786167,0.25199373,87042.0,87039.0,0.0114891]
[1765814786380,0.01072975,87041.0,87038.0,0.01148923]
[1765814786579,0.0114887,87042.0,87040.0,0.22977814]
[1765814786786,0.01072975,87042.0,87040.0,0.22977814]
[1765814787001,0.02221845,87042.0,87039.0,0.02825798]
[1765814787180,0.0114891,87039.0,87036.0,0.01148949]
[1765814787383,0.02221845,87042.0,87037.0,0.01148936]
[1765814787384,0.01148897,87040.0,87037.0,0.01148936]
[1765814787634,0.25199904,87040.0,87037.0,0.2412763]
[1765814787784,0.07329333,87042.0,87037.0,0.2412763]
[1765814787785,0.001,87043.0,87042.0,0.22977413]
[1765814787986,0.01148804,87047.0,87042.0,0.14784769]
[1765814788206,0.22976929,87044.0,87042.0,0.00161287]
[1765814788601,0.24050189,87043.0,87042.0,0.00161287]
[1765814789002,0.0107304,87043.0,87042.0,0.00161287]
[1765814789176,0.22977141,87044.0,87042.0,0.00161287]
[1765814789383,0.0107304,87043.0,87042.0,0.31196557]
[1765814789587,0.01072329,87048.0,87047.0,0.22976093]
[1765814789765,0.01072329,87049.0,87046.0,0.01148817]
[1765814789970,0.24047902,87049.0,87046.0,0.01148817]
[1765814790170,0.01072329,87048.0,87046.0,0.01148817]
[1765814790609,0.06178615,87047.0,87046.0,0.2412513]
[1765814790910,0.07250944,87047.0,87046.0,0.31608806]
[1765814791259,0.07250944,87047.0,87046.0,0.36297137]
[1765814791260,0.01072329,87047.0,87046.0,0.36297137]
[1765814791463,0.45932519,87085.0,87053.0,0.22974509]
[1765814791464,0.06178615,87054.0,87053.0,0.22974509]
[1765814791713,0.01072266,87054.0,87053.0,0.22974509]
[1765814791952,0.01072266,87054.0,87053.0,0.29953704]
[1765814792122,0.01072266,87054.0,87053.0,0.06979195]
[1765814792327,0.01072266,87054.0,87046.0,0.01310104]
[1765814792328,0.22975343,87050.0,87047.0,0.01148804]
[1765814792473,0.02469981,87049.0,87047.0,0.24124845]
[1765814792673,0.02469981,87048.0,87046.0,0.00161287]
[1765814792920,0.02469981,87047.0,87046.0,0.00161287]
[1765814793135,0.02469981,87047.0,87046.0,0.23137644]
[1765814793307,0.02469981,87047.0,87046.0,0.29111694]
[1765814793632,0.001,87047.0,87046.0,0.06135337]
[1765814793982,0.02571791,87047.0,87046.0,0.29111694]
[1765814794160,0.25447884,87047.0,87046.0,0.06135337]
[1765814794373,0.22976357,87046.0,87045.0,0.01832]
[1765814794579,0.26521447,87046.0,87045.0,0.01832]
[1765814794809,0.02471791,87046.0,87045.0,0.01832]
[1765814794981,0.24127443,87038.0,87033.0,0.01148989]
[1765814795214,0.03090911,87038.0,87037.0,0.24810733]
[1765814795386,0.01148883,87041.0,87038.0,0.01148923]
[1765814795697,0.02474685,87040.0,87038.0,0.24127151]
[1765814795903,0.22978469,87038.0,87037.0,0.09368493]
[1765814796061,0.25453154,87038.0,87037.0,0.01832]
[1765814796262,0.27511154,87038.0,87037.0,0.01832]
[1765814796463,0.27511154,87038.0,87029.0,0.01832]
[1765814796464,0.24129695,87030.0,87029.0,0.01832]
[1765814796685,0.2660438,87030.0,87029.0,0.05037111]
[1765814797162,0.02474685,87030.0,87029.0,0.17075111]
[1765814797366,0.02474685,87030.0,87029.0,0.05037111]
[1765814797719,0.02474685,87030.0,87029.0,0.05237111]
[1765814797905,0.02474685,87030.0,87029.0,0.02032]
[1765814798049,0.02474685,87030.0,87029.0,0.002]
[1765814798738,0.01149187,87018.0,87010.0,0.30184849]
[1765814798904,0.24133949,87015.0,87012.0,0.01832]
[1765814799117,0.02474685,87014.0,87013.0,0.02714213]
[1765814799324,1.0,87012.0,87011.0,0.00025234]
[1765814799520,1.08482309,87012.0,87011.0,0.00025234]
[1765814799847,1.44371309,87012.0,87011.0,0.00025234]
[1765814799975,1.55891309,87012.0,87011.0,0.00025234]
[1765814800180,0.55891309,87012.0,87011.0,0.00025234]
[1765814800380,1.55891309,87012.0,87011.0,0.00025234]
[1765814800636,1.44371309,87012.0,87011.0,0.00025234]
[1765814801091,1.55891309,87012.0,87011.0,0.00025234]
[1765814801564,1.44371309,87012.0,87011.0,0.00025234]
[1765814801736,1.36778685,87012.0,87011.0,0.00025234]
[1765814801895,1.55117685,87012.0,87011.0,0.00025234]
[1765814802103,1.43597685,87012.0,87011.0,0.00025234]
[1765814802503,1.44668267,87012.0,87011.0,0.00025234]
[1765814802724,1.56188267,87012.0,87011.0,0.00025234]
[1765814803297,1.58199018,87012.0,87011.0,0.00025234]
[1765814803659,1.61189283,87012.0,87011.0,0.00025234]
[1765814804417,1.49369283,87012.0,87011.0,0.00025234]
[1765814804856,1.61289283,87012.0,87011.0,0.00025234]
[1765814805029,1.44767444,87012.0,87011.0,0.00025234]
[1765814805215,1.46598985,87012.0,87011.0,0.00025234]
[1765814805454,1.44367007,87012.0,87011.0,0.00025234]
[1765814805806,1.45529685,87012.0,87011.0,0.00025234]
[1765814805979,1.43697685,87012.0,87011.0,0.00025234]
[1765814806437,1.45529685,87012.0,87011.0,0.00025234]
[1765814806845,1.57049685,87012.0,87011.0,0.00025234]
[1765814807249,1.55217685,87012.0,87011.0,0.00025234]
[1765814807455,1.45529685,87012.0,87011.0,0.00025234]
[1765814807903,1.57049685,87012.0,87011.0,0.00025234]
[1765814808113,1.45529685,87012.0,87011.0,0.00025234]
[1765814808265,1.63119879,87012.0,87011.0,1e-08]
[1765814808444,1.0,86996.0,86994.0,0.0004]
[1765814808649,1.47387685,86995.0,86994.0,0.0004]
[1765814808861,1.50462386,86995.0,86994.0,0.0004]
[1765814809068,1.58907685,86995.0,86994.0,0.0004]
[1765814809299,1.31544685,86995.0,86994.0,0.0004]
[1765814809637,0.51288685,86995.0,86994.0,0.0004]
[1765814810052,0.22989562,86996.0,86994.0,0.0004]
[1765814810200,0.24139026,86997.0,86994.0,0.00201287]
[1765814810405,0.22987184,87005.0,87000.0,0.22988345]
[1765814810656,0.82489319,87008.0,87001.0,0.06231348]
[1765814810793,0.01149346,87006.0,87001.0,0.07360287]
[1765814810991,0.22987976,87003.0,87001.0,0.00161287]
[1765814811608,0.01149279,87011.0,87007.0,0.01149332]
[1765814811815,0.01149187,87018.0,87007.0,0.01310619]
[1765814812013,0.01149293,87010.0,87007.0,0.00161287]
[1765814812214,0.01149253,87013.0,87009.0,0.22986028]
[1765814812215,0.22985525,87012.0,87009.0,0.22986028]
[1765814812423,0.22985599,87011.0,87009.0,0.00161287]
[1765814812640,0.22985599,87011.0,87008.0,0.02308181]
[1765814812641,0.51399055,87028.0,87019.0,0.01149174]
[1765814812815,0.01149068,87027.0,87023.0,0.01149121]
[1765814813019,0.22981752,87026.0,87024.0,0.01243441]
[1765814813217,0.01149068,87027.0,87024.0,0.01404728]
[1765814813767,0.1178,87031.0,87027.0,0.01149068]
[1765814813916,0.24129438,87031.0,87028.0,0.01149055]
[1765814814137,0.01148949,87036.0,87033.0,0.01148989]
[1765814814348,0.6046,87046.0,87042.0,0.0114887]
[1765814814690,0.27706472,87055.0,87035.0,0.04839]
[1765814814893,0.1356,87051.0,87048.0,0.24124432]
[1765814815096,0.53193134,87054.0,87048.0,0.01148791]
[1765814815298,0.01148751,87051.0,87048.0,0.01310078]
[1765814815505,0.01148685,87056.0,87048.0,0.01310078]
[1765814815506,0.01148659,87058.0,87051.0,0.01148751]
[1765814815705,0.22973205,87058.0,87055.0,0.01148699]
[1765814815927,0.01148672,87057.0,87056.0,0.05554489]
[1765814816145,0.01148712,87054.0,87051.0,0.00161287]
[1765814816363,0.01148606,87062.0,87056.0,0.04839]
[1765814816627,0.01148646,87059.0,87057.0,0.02297345]
[1765814816907,0.24120278,87064.0,87057.0,0.02297345]
[1765814816908,0.00019992,87067.0,87064.0,0.0114858]
[1765814817150,0.00019992,87067.0,87057.0,0.02458632]
[1765814817151,0.05328807,87084.0,87073.0,0.01148461]
[1765814817432,0.05328807,87084.0,87061.0,0.04839]
[1765814817433,0.01148408,87077.0,87072.0,0.01148474]
[1765814817664,0.01148382,87079.0,87073.0,0.02526672]
[1765814817897,0.01148303,87085.0,87078.0,0.01148395]